[Event "CCT Chessable Masters Place D-III 2024"]
[Site "Online"]
[Date "2024.02.01"]
[Round "1"]
[White "Le, Tuan Minh"]
[Black "Dubov, Daniil"]
[Result "1-0"]
[ECO "E90"]
[WhiteElo "2567"]
[BlackElo "2708"]
[Annotator "TA"]
[PlyCount "53"]
[EventDate "2024.01.12"]
[EventType "k.o."]
[EventCountry "NET"]
[SourceTitle "playchess.com"]
[Source "ChessBase"]
[SourceQuality "1"]
[TimeControl "600+2"]

{[%evp 17,53,72,106,93,102,77,95,66,202,93,78,87,209,208,219,189,185,189,317,325,313,237,398,299,305,297,481,413,504,483,453,420,428,379,407,378,504,501]} 1. d4 {[%emt 0:00:09][%cal Bd2d4,Bd4d5][%mdl 32]} Nf6 {[%emt 0:00:05]} 2. c4 {[%emt 0:00:02]} c5 {[%emt 0:00:01]} 3. d5 {[%emt 0:00:02]} g6 {[%emt 0:00:01]} 4. Nc3 {[%emt 0:00:09]} Bg7 {[%emt 0:00:01]} 5. e4 {[%emt 0:00:01]} d6 {[%emt 0:00:02]} 6. h3 {[%emt 0:00:02]} O-O {[%emt 0:00:02]} 7. Nf3 {[%emt 0:00:01]} e6 {[%emt 0:00:03]} 8. Bd3 {[%emt 0:00:37]} Nbd7 {[%emt 0:00:14]} 9. O-O {[%emt 0:00:55]} e5 {[%emt 0:00:02]} 10. Be3 {[%emt 0:00:48]} Nh5 {[%emt 0:00:07]} 11. Qd2 {[%emt 0:00:01]} Qe7 {[%emt 0:00:03]} 12. Rae1 {[%emt 0:00:08] White is more active. White is better.} f5 {[%emt 0:00:06]} (12... a6 $14) 13. Bg5 {[%emt 0:00:06]} (13. exf5 $18 {and the rest is easy. And now Bg5 would win.} gxf5 14. Bg5) 13... Ndf6 $16 {[%emt 0:00:05]} 14. exf5 {[%emt 0:00:24]} gxf5 {[%emt 0:00:03]} (14... Bxf5 $16 {was necessary.} 15. g4 Bxd3) 15. Nh4 $18 {[%emt 0:00:06]} e4 {[%emt 0:00:44]} 16. f3 {[%emt 0:00:26]} Ng3 {[%emt 0:00:12]} 17. Rf2 {[%emt 0:00:14] [#] aiming for fxe4.} Bd7 {[%emt 0:00:02]} (17... Qe5 $142 18. Bf4 Qd4) 18. fxe4 {[%emt 0:00:12]} fxe4 {[%emt 0:00:08]} 19. Re3 {[%emt 0:00:52]} Rae8 $2 {[%emt 0:02:48]} (19... Qe5 20. Bf4 Qh5) 20. Bc2 {[%emt 0:01:23]} (20. Rxg3 exd3 21. Re3 (21. Rxd3 $2 Qe1+ 22. Rf1 Qxf1+ 23. Kxf1 Ne4+ 24. Kg1 Nxd2 $19) 21... Qd8 22. Rxd3 (22. Qxd3 Rxe3 23. Qxe3 Qe8 $18) 22... Rf7 $18) 20... Ngh5 {[%emt 0:00:22]} (20... Qe5 21. Bf4 $18) 21. Bxe4 {[%emt 0:00:42]} (21. Nxe4 Nxe4 22. Rxe4 Rxf2 23. Kxf2 (23. Rxe7 Rxd2 24. Rxe8+ Bxe8 $14) 23... Qf7+ 24. Nf3 Rxe4 25. Bxe4 b5 $16) 21... Qd8 $2 {[%emt 0:00:11]} (21... Nxe4 {keeps fighting.} 22. Nxe4 Rxf2 23. Qxf2 Qf8 24. Qxf8+ (24. Rf3 Bd4 $18) 24... Rxf8) 22. Bf5 {[%emt 0:00:13] [#] Be6+ is the strong threat.} h6 {[%emt 0:00:24]} 23. Rxe8 {[%emt 0:00:12]} Qxe8 {[%emt 0:00:01]} 24. Re2 {[%emt 0:00:31]} ({Worse is} 24. Bxh6 Bxh6 25. Qxh6 (25. Bxd7 $2 Bxd2 26. Bxe8 Bxc3 $19) 25... Qe1+ 26. Rf1 Qxh4 27. Be6+ (27. Bxd7 Qd4+ 28. Kh2 Qe5+ 29. Kg1 Nxd7 $17) 27... Bxe6 28. Qg6+ Kh8 29. Qh6+ Kg8 30. Qg6+ Kh8 31. Qh6+ Kg8 $11) 24... Qc8 {[%emt 0:00:02]} 25. Bxd7 {[%emt 0:00:22]} Qxd7 {[%emt 0:00:01]} 26. Bxh6 {[%emt 0:00:02]} Re8 {[%emt 0:00:01]} 27. Qg5 {[%emt 0:00:18] Weighted Error Value: White=0.38/Black=0.74.  Mistake:       	White=1     	Black=5      Inaccurate:     	White=1     	Black=1      OK:         	White=4     	Black=4      Best:        	White=4     	Black=1} 1-0

[Event "CCT Chessable Masters Place D-III 2024"]
[Site "Online"]
[Date "2024.02.01"]
[Round "1"]
[White "Bernadskiy, Vitaliy"]
[Black "bardiya_Daneshvar"]
[Result "0-1"]
[ECO "C77"]
[WhiteElo "2566"]
[BlackElo "2592"]
[Annotator "ChessBase"]
[PlyCount "102"]
[EventDate "2024.01.12"]
[EventType "k.o."]
[EventCountry "NET"]
[SourceTitle "playchess.com"]
[Source "ChessBase"]
[SourceQuality "1"]
[TimeControl "600+2"]

1. e4 {[%emt 0:00:05]} e5 {[%emt 0:01:37]} 2. Nf3 {[%emt 0:00:03]} Nc6 {[%emt 0:00:02]} 3. Bb5 {[%emt 0:00:03]} Nf6 {[%emt 0:00:03]} 4. d3 {[%emt 0:00:03]} d6 {[%emt 0:00:03]} 5. O-O {[%emt 0:00:06]} Be7 {[%emt 0:00:03]} 6. c3 {[%emt 0:00:03]} O-O {[%emt 0:00:03]} 7. Nbd2 {[%emt 0:00:08]} a6 {[%emt 0:00:05]} 8. Ba4 {[%emt 0:00:04]} b5 {[%emt 0:00:02]} 9. Bc2 {[%emt 0:00:03]} Bb7 {[%emt 0:00:04]} 10. Re1 {[%emt 0:00:10]} Re8 {[%emt 0:00:03]} 11. Nf1 {[%emt 0:00:25]} Bf8 {[%emt 0:00:03]} 12. Bg5 {[%emt 0:00:07]} h6 {[%emt 0:00:07]} 13. Bh4 {[%emt 0:00:03]} Be7 {[%emt 0:00:42]} 14. Ne3 {[%emt 0:00:08]} g6 {[%emt 0:00:33]} 15. a4 {[%emt 0:00:04]} Nh5 {[%emt 0:00:08]} 16. Bxe7 {[%emt 0:00:11]} Nxe7 {[%emt 0:00:02]} 17. Qd2 {[%emt 0:00:10]} Nf6 {[%emt 0:00:07]} 18. d4 {[%emt 0:00:20]} Bxe4 {[%emt 0:00:35]} 19. dxe5 {[%emt 0:00:14]} dxe5 {[%emt 0:00:05]} 20. Qxd8 {[%emt 0:00:03]} Rexd8 {[%emt 0:01:15]} 21. Bxe4 {[%emt 0:00:03]} Nxe4 {[%emt 0:00:02]} 22. Ng4 {[%emt 0:00:14]} Nd6 {[%emt 0:00:04]} 23. Nxh6+ {[%emt 0:00:20]} Kg7 {[%emt 0:00:03]} 24. Rxe5 {[%emt 0:00:03]} Nc6 {[%emt 0:00:15]} 25. Rc5 {[%emt 0:00:06]} Na5 {[%emt 0:00:03]} 26. Nxf7 {[%emt 0:00:23]} Nxf7 {[%emt 0:00:25]} 27. Rxc7 {[%emt 0:00:03]} Nb3 {[%emt 0:00:03]} 28. Re1 {[%emt 0:00:05]} Rac8 {[%emt 0:00:07]} 29. Rce7 {[%emt 0:00:09]} Kf8 {[%emt 0:00:32]} 30. axb5 {[%emt 0:00:11]} axb5 {[%emt 0:00:02]} 31. Nh4 {[%emt 0:00:04]} Rc6 {[%emt 0:00:08]} 32. Rb7 {[%emt 0:00:18]} Rd5 {[%emt 0:00:08]} 33. h3 {[%emt 0:00:10]} Rf6 {[%emt 0:00:17]} 34. Nf3 {[%emt 0:00:16]} Na5 {[%emt 0:00:05]} 35. Rc7 {[%emt 0:00:10]} Nc6 {[%emt 0:00:07]} 36. Ra1 {[%emt 0:00:10]} Nce5 {[%emt 0:00:10]} 37. Nd4 {[%emt 0:00:05]} b4 {[%emt 0:00:04]} 38. Ra8+ {[%emt 0:00:13]} Kg7 {[%emt 0:00:03]} 39. Re8 {[%emt 0:00:03]} bxc3 {[%emt 0:00:07]} 40. bxc3 {[%emt 0:00:02]} Rd7 {[%emt 0:00:06]} 41. Rcc8 {[%emt 0:00:15]} Nd6 {[%emt 0:00:17]} 42. Rg8+ {[%emt 0:00:06]} Kh6 {[%emt 0:00:02]} 43. Rc5 {[%emt 0:00:10]} Nd3 {[%emt 0:00:07]} 44. Rd5 {[%emt 0:00:12]} Re7 {[%emt 0:00:06]} 45. f3 {[%emt 0:00:57]} Nf4 {[%emt 0:00:04]} 46. Ra5 {[%emt 0:00:04]} Ne2+ {[%emt 0:00:06]} 47. Nxe2 {[%emt 0:00:14]} Rxe2 {[%emt 0:00:02]} 48. h4 {[%emt 0:00:03]} Nf5 {[%emt 0:00:26]} 49. g4 {[%emt 0:01:07]} Rb6 {[%emt 0:00:07]} 50. Ra1 {[%emt 0:00:19]} Nxh4 {[%emt 0:00:05]} 51. Kf1 {[%emt 0:00:03]} Rh2 {[%emt 0:00:10]} 0-1

[Event "CCT Chessable Masters Place D-III 2024"]
[Site "Online"]
[Date "2024.02.01"]
[Round "1"]
[White "stSecond"]
[Black "Ohanyan, Emin"]
[Result "0-1"]
[ECO "D78"]
[WhiteElo "2559"]
[BlackElo "2456"]
[Annotator "ChessBase"]
[PlyCount "90"]
[EventDate "2024.01.12"]
[EventType "k.o."]
[EventCountry "NET"]
[SourceTitle "playchess.com"]
[Source "ChessBase"]
[SourceQuality "1"]
[TimeControl "600+2"]

1. Nf3 {[%emt 0:00:05]} d5 {[%emt 0:00:04]} 2. g3 {[%emt 0:00:04]} g6 {[%emt 0:00:16]} 3. Bg2 {[%emt 0:00:01]} Bg7 {[%emt 0:00:01]} 4. d4 {[%emt 0:00:01]} Nf6 {[%emt 0:00:01]} 5. O-O {[%emt 0:00:03]} O-O {[%emt 0:00:00]} 6. c4 {[%emt 0:00:01]} c6 {[%emt 0:00:01]} 7. a4 {[%emt 0:00:01]} a5 {[%emt 0:00:31]} 8. cxd5 {[%emt 0:00:06]} Nxd5 {[%emt 0:00:18]} 9. Na3 {[%emt 0:00:31]} Na6 {[%emt 0:00:19]} 10. e4 {[%emt 0:00:51]} Ndb4 {[%emt 0:02:20]} 11. h3 {[%emt 0:00:09]} Be6 {[%emt 0:00:35]} 12. Be3 {[%emt 0:00:08]} h6 {[%emt 0:00:00]} 13. Qd2 {[%emt 0:03:02]} Kh7 {[%emt 0:00:02]} 14. Rfc1 {[%emt 0:00:04]} Qd7 {[%emt 0:03:16]} 15. Nc4 {[%emt 0:00:26]} Bxc4 {[%emt 0:00:01]} 16. Rxc4 {[%emt 0:00:00]} e6 {[%emt 0:00:00]} 17. h4 {[%emt 0:01:36]} Rfd8 {[%emt 0:01:03]} 18. Qe2 {[%emt 0:00:55]} Nc7 {[%emt 0:01:00]} 19. Bf4 {[%emt 0:00:15]} Qe7 {[%emt 0:00:20]} 20. Bh3 {[%emt 0:00:26]} Ne8 {[%emt 0:00:16]} 21. Re1 {[%emt 0:01:27]} Nf6 {[%emt 0:00:01]} 22. Be5 {[%emt 0:00:21]} Nd7 {[%emt 0:00:03]} 23. Bxg7 {[%emt 0:00:04]} Kxg7 {[%emt 0:00:00]} 24. h5 {[%emt 0:00:01]} g5 {[%emt 0:00:06]} 25. b3 {[%emt 0:00:04]} Nf6 {[%emt 0:00:02]} 26. Ne5 {[%emt 0:00:06]} Nd7 {[%emt 0:00:03]} 27. f4 {[%emt 0:00:04]} gxf4 {[%emt 0:00:09]} 28. Qg4+ {[%emt 0:00:02]} Kh7 {[%emt 0:00:01]} 29. Nxd7 {[%emt 0:00:03]} Rxd7 {[%emt 0:00:05]} 30. Rf1 {[%emt 0:00:02]} fxg3 {[%emt 0:00:04]} 31. e5 {[%emt 0:00:01]} Rg8 {[%emt 0:00:01]} 32. Qe4+ {[%emt 0:00:01]} Kh8 {[%emt 0:00:00]} 33. Rf6 {[%emt 0:00:00]} Qf8 {[%emt 0:00:03]} 34. Bxe6 {[%emt 0:00:02]} Re7 {[%emt 0:00:01]} 35. Bf5 {[%emt 0:00:03]} Qg7 {[%emt 0:00:02]} 36. Qf3 {[%emt 0:00:03]} Nd5 {[%emt 0:00:01]} 37. Rd6 {[%emt 0:00:02]} Qg5 {[%emt 0:00:01]} 38. Bd3 {[%emt 0:00:03]} Nf4 {[%emt 0:00:01]} 39. d5 {[%emt 0:00:04]} g2 {[%emt 0:00:00]} 40. Rxf4 {[%emt 0:00:01]} Rxe5 {[%emt 0:00:02]} 41. Be4 {[%emt 0:00:02]} f5 {[%emt 0:00:02]} 42. Rxf5 {[%emt 0:00:02]} Qc1+ {[%emt 0:00:02]} 43. Kh2 {[%emt 0:00:01]} g1=Q+ {[%emt 0:00:02]} 44. Kh3 {[%emt 0:00:01]} Rxf5 {[%emt 0:00:06]} 45. Qxf5 {[%emt 0:00:03]} Qg3# {[%emt 0:00:01]} 0-1

[Event "CCT Chessable Masters Place D-III 2024"]
[Site "Online"]
[Date "2024.02.01"]
[Round "1"]
[White "stSecond"]
[Black "Ohanyan, Emin"]
[Result "1-0"]
[ECO "D00"]
[WhiteElo "2554"]
[BlackElo "2456"]
[Annotator "ChessBase"]
[PlyCount "101"]
[EventDate "2024.01.12"]
[EventType "k.o."]
[EventCountry "NET"]
[SourceTitle "playchess.com"]
[Source "ChessBase"]
[SourceQuality "1"]
[TimeControl "600+2"]

1. d4 {[%emt 0:00:06]} Nf6 {[%emt 0:03:09]} 2. Bg5 {[%emt 0:00:03]} d5 {[%emt 0:00:05]} 3. Bxf6 {[%emt 0:00:05]} gxf6 {[%emt 0:00:02]} 4. e3 {[%emt 0:00:03]} c5 {[%emt 0:00:03]} 5. dxc5 {[%emt 0:00:03]} e6 {[%emt 0:00:06]} 6. c4 {[%emt 0:00:04]} Qa5+ {[%emt 0:00:18]} 7. Nd2 {[%emt 0:00:11]} dxc4 {[%emt 0:00:08]} 8. Bxc4 {[%emt 0:00:03]} Qxc5 {[%emt 0:00:13]} 9. Ngf3 {[%emt 0:00:14]} Nc6 {[%emt 0:00:05]} 10. O-O {[%emt 0:00:05]} Qe7 {[%emt 0:00:35]} 11. Rc1 {[%emt 0:00:19]} Bd7 {[%emt 0:00:13]} 12. Bb5 {[%emt 0:00:30]} a6 {[%emt 0:00:45]} 13. Bxc6 {[%emt 0:00:11]} Bxc6 {[%emt 0:00:07]} 14. Nd4 {[%emt 0:00:02]} Bd7 {[%emt 0:00:08]} 15. Rc7 {[%emt 0:00:26]} Qd8 {[%emt 0:00:52]} 16. Rxb7 {[%emt 0:00:34]} Rb8 {[%emt 0:00:03]} 17. Qb3 {[%emt 0:00:24]} Rxb7 {[%emt 0:00:11]} 18. Qxb7 {[%emt 0:00:02]} Qc8 {[%emt 0:00:03]} 19. Qxc8+ {[%emt 0:00:34]} Bxc8 {[%emt 0:00:02]} 20. Rc1 {[%emt 0:00:03]} Kd8 {[%emt 0:00:19]} 21. Ne4 {[%emt 0:00:11]} Bb7 {[%emt 0:00:06]} 22. Nxf6 {[%emt 0:00:16]} Bg7 {[%emt 0:00:53]} 23. Nh5 {[%emt 0:00:08]} Bxd4 {[%emt 0:00:04]} 24. exd4 {[%emt 0:00:02]} Rg8 {[%emt 0:00:02]} 25. g3 {[%emt 0:00:17]} Bf3 {[%emt 0:00:10]} 26. Nf4 {[%emt 0:00:20]} Kd7 {[%emt 0:00:02]} 27. Rc3 {[%emt 0:00:24]} Ba8 {[%emt 0:00:10]} 28. f3 {[%emt 0:00:18]} Kd6 {[%emt 0:00:02]} 29. Kf2 {[%emt 0:00:04]} Bc6 {[%emt 0:00:03]} 30. Nd3 {[%emt 0:00:10]} Rb8 {[%emt 0:00:16]} 31. b3 {[%emt 0:00:03]} Be8 {[%emt 0:00:19]} 32. Nc5 {[%emt 0:00:11]} a5 {[%emt 0:00:26]} 33. Ne4+ {[%emt 0:00:04]} Ke7 {[%emt 0:00:02]} 34. Rc7+ {[%emt 0:00:12]} Kd8 {[%emt 0:00:03]} 35. Ra7 {[%emt 0:00:04]} a4 {[%emt 0:00:02]} 36. Nc5 {[%emt 0:00:18]} axb3 {[%emt 0:00:03]} 37. axb3 {[%emt 0:00:03]} Rb5 {[%emt 0:00:06]} 38. f4 {[%emt 0:00:08]} h5 {[%emt 0:00:05]} 39. Ke3 {[%emt 0:00:04]} Rb6 {[%emt 0:00:15]} 40. h3 {[%emt 0:00:11]} f6 {[%emt 0:00:04]} 41. Ra6 {[%emt 0:00:38]} Rb8 {[%emt 0:00:11]} 42. Rxe6 {[%emt 0:00:12]} Ra8 {[%emt 0:00:04]} 43. g4 {[%emt 0:00:36]} hxg4 {[%emt 0:00:03]} 44. hxg4 {[%emt 0:00:02]} Ra1 {[%emt 0:00:05]} 45. Rxf6 {[%emt 0:00:03]} Rg1 {[%emt 0:00:04]} 46. g5 {[%emt 0:00:03]} Bh5 {[%emt 0:00:03]} 47. d5 {[%emt 0:00:08]} Ke7 {[%emt 0:00:03]} 48. d6+ {[%emt 0:00:04]} Ke8 {[%emt 0:00:02]} 49. d7+ {[%emt 0:00:04]} Ke7 {[%emt 0:00:03]} 50. Re6+ {[%emt 0:00:10]} Kd8 {[%emt 0:00:03]} 51. Rd6 {[%emt 0:00:03]} 1-0

[Event "CCT Chessable Masters Place D-III 2024"]
[Site "Online"]
[Date "2024.02.01"]
[Round "1"]
[White "Raja Rithvik R"]
[Black "Safarli, Eltaj"]
[Result "0-1"]
[ECO "D85"]
[WhiteElo "2522"]
[BlackElo "2604"]
[Annotator "ChessBase"]
[PlyCount "56"]
[EventDate "2024.01.12"]
[EventType "k.o."]
[EventCountry "NET"]
[SourceTitle "playchess.com"]
[Source "ChessBase"]
[SourceQuality "1"]
[TimeControl "600+2"]

1. d4 {[%emt 0:00:03]} Nf6 {[%emt 0:00:21]} 2. c4 {[%emt 0:00:01]} g6 {[%emt 0:00:03]} 3. Nc3 {[%emt 0:00:02]} d5 {[%emt 0:00:02]} 4. cxd5 {[%emt 0:00:00]} Nxd5 {[%emt 0:00:00]} 5. e4 {[%emt 0:00:01]} Nxc3 {[%emt 0:00:01]} 6. bxc3 {[%emt 0:00:00]} Bg7 {[%emt 0:00:01]} 7. Nf3 {[%emt 0:00:03]} O-O {[%emt 0:00:13]} 8. Be2 {[%emt 0:00:03]} c5 {[%emt 0:00:02]} 9. O-O {[%emt 0:00:02]} Nd7 {[%emt 0:00:01]} 10. Rb1 {[%emt 0:00:24]} Nf6 {[%emt 0:00:07]} 11. Qd3 {[%emt 0:00:06]} b6 {[%emt 0:00:08]} 12. Rd1 {[%emt 0:00:54]} Nxe4 {[%emt 0:00:30]} 13. Qxe4 {[%emt 0:01:05]} Bf5 {[%emt 0:00:01]} 14. Qh4 {[%emt 0:00:05]} Bxb1 {[%emt 0:00:02]} 15. Bg5 {[%emt 0:00:01]} Bxa2 {[%emt 0:00:28]} 16. Bxe7 {[%emt 0:00:02]} Qc7 {[%emt 0:00:04]} 17. Bxf8 {[%emt 0:00:05]} Rxf8 {[%emt 0:00:01]} 18. d5 {[%emt 0:00:15]} Bb3 {[%emt 0:00:26]} 19. Rd2 {[%emt 0:00:10]} Qd8 {[%emt 0:01:17]} 20. Qf4 {[%emt 0:03:00]} Qf6 {[%emt 0:00:20]} 21. Qc7 {[%emt 0:00:07]} Bh6 {[%emt 0:00:13]} 22. d6 {[%emt 0:00:39]} Bxd2 {[%emt 0:00:13]} 23. Nxd2 {[%emt 0:00:00]} Bd5 {[%emt 0:00:20]} 24. d7 {[%emt 0:00:28]} Qe7 {[%emt 0:01:02]} 25. Bb5 {[%emt 0:00:13]} Rd8 {[%emt 0:00:22]} 26. h3 {[%emt 0:01:00]} a6 {[%emt 0:00:08]} 27. Bxa6 {[%emt 0:00:09]} Rxd7 {[%emt 0:00:03]} 28. Qxb6 {[%emt 0:00:18]} Qg5 {[%emt 0:00:10]} 0-1

[Event "CCT Chessable Masters Place D-III 2024"]
[Site "Online"]
[Date "2024.02.01"]
[Round "1"]
[White "SpeedofLight0"]
[Black "Santos Latasa, Jaime"]
[Result "1-0"]
[ECO "C79"]
[WhiteElo "2508"]
[BlackElo "2615"]
[Annotator "ChessBase"]
[PlyCount "83"]
[EventDate "2024.01.12"]
[EventType "k.o."]
[EventCountry "NET"]
[SourceTitle "playchess.com"]
[Source "ChessBase"]
[SourceQuality "1"]
[TimeControl "600+2"]

1. e4 {[%emt 0:00:03]} e5 {[%emt 0:00:06]} 2. Nf3 {[%emt 0:00:01]} Nc6 {[%emt 0:00:02]} 3. Bb5 {[%emt 0:00:07]} a6 {[%emt 0:00:01]} 4. Ba4 {[%emt 0:00:01]} Nf6 {[%emt 0:00:01]} 5. O-O {[%emt 0:00:02]} d6 {[%emt 0:00:08]} 6. Bxc6+ {[%emt 0:00:43]} bxc6 {[%emt 0:00:03]} 7. d4 {[%emt 0:00:00]} exd4 {[%emt 0:00:02]} 8. Nxd4 {[%emt 0:00:00]} c5 {[%emt 0:00:03]} 9. Nc6 {[%emt 0:00:01]} Qd7 {[%emt 0:00:03]} 10. Na5 {[%emt 0:00:00]} Qa4 {[%emt 0:00:01]} 11. Bd2 {[%emt 0:00:06]} Bg4 {[%emt 0:00:05]} 12. f3 {[%emt 0:00:30]} Be6 {[%emt 0:00:03]} 13. Kh1 {[%emt 0:01:09]} Be7 {[%emt 0:00:05]} 14. b3 {[%emt 0:00:26]} Qd7 {[%emt 0:00:05]} 15. Nc3 {[%emt 0:00:03]} O-O {[%emt 0:00:04]} 16. Qe2 {[%emt 0:00:23]} Rfe8 {[%emt 0:00:29]} 17. Rad1 {[%emt 0:00:03]} h6 {[%emt 0:00:04]} 18. Bf4 {[%emt 0:00:32]} Bf8 {[%emt 0:00:44]} 19. e5 {[%emt 0:01:17]} Bf5 {[%emt 0:00:54]} 20. Qf2 {[%emt 0:00:58]} Nh5 {[%emt 0:00:04]} 21. Bc1 {[%emt 0:00:06]} Rxe5 {[%emt 0:00:03]} 22. g4 {[%emt 0:00:10]} Bg6 {[%emt 0:00:05]} 23. Nc4 {[%emt 0:00:30]} Re7 {[%emt 0:00:19]} 24. gxh5 {[%emt 0:00:04]} Bxh5 {[%emt 0:00:00]} 25. Nd5 {[%emt 0:00:08]} Ree8 {[%emt 0:00:03]} 26. Bxh6 {[%emt 0:00:42]} c6 {[%emt 0:01:33]} 27. Ndb6 {[%emt 0:00:07]} Qe6 {[%emt 0:00:01]} 28. Nxa8 {[%emt 0:00:58]} Qxh6 {[%emt 0:00:04]} 29. Nc7 {[%emt 0:00:01]} Rc8 {[%emt 0:00:02]} 30. Nxa6 {[%emt 0:00:15]} Ra8 {[%emt 0:00:02]} 31. Nc7 {[%emt 0:00:06]} Rc8 {[%emt 0:00:03]} 32. Qg3 {[%emt 0:00:11]} Rxc7 {[%emt 0:00:10]} 33. Nxd6 {[%emt 0:00:02]} Ra7 {[%emt 0:00:07]} 34. a4 {[%emt 0:00:06]} Bg6 {[%emt 0:00:09]} 35. Nc4 {[%emt 0:00:33]} Bxc2 {[%emt 0:00:18]} 36. Rd8 {[%emt 0:00:02]} g6 {[%emt 0:00:01]} 37. Re1 {[%emt 0:00:18]} Bxb3 {[%emt 0:00:03]} 38. Ree8 {[%emt 0:00:09]} Qc1+ {[%emt 0:00:55]} 39. Kg2 {[%emt 0:00:02]} Bxc4 {[%emt 0:00:04]} 40. Rxf8+ {[%emt 0:00:01]} Kg7 {[%emt 0:00:01]} 41. Qe5+ {[%emt 0:00:03]} f6 {[%emt 0:00:02]} 42. Qxf6+ {[%emt 0:00:02]} 1-0

[Event "CCT Chessable Masters Place D-III 2024"]
[Site "Online"]
[Date "2024.02.01"]
[Round "1"]
[White "Drags95"]
[Black "MashaPutina"]
[Result "1/2-1/2"]
[ECO "E48"]
[WhiteElo "2465"]
[BlackElo "2644"]
[Annotator "NA"]
[PlyCount "131"]
[EventDate "2024.01.12"]
[EventType "k.o."]
[EventCountry "NET"]
[SourceTitle "playchess.com"]
[Source "ChessBase"]
[SourceQuality "1"]
[TimeControl "600+2"]

1. d4 {[%emt 0:00:02]} Nf6 {[%emt 0:00:04]} 2. c4 {[%emt 0:00:02]} e6 {[%emt 0:00:01]} 3. Nc3 {[%emt 0:00:01]} Bb4 {[%emt 0:00:02]} 4. e3 {[%emt 0:00:01]} O-O {[%emt 0:00:02]} 5. Bd3 {[%emt 0:00:02]} c5 {[%emt 0:00:02]} 6. Nge2 {[%emt 0:00:04]} d5 {[%emt 0:00:05]} 7. cxd5 {[%emt 0:00:12]} cxd4 {[%emt 0:00:01]} 8. exd4 {[%emt 0:00:02]} Nxd5 {[%emt 0:00:01]} 9. O-O {[%emt 0:00:02]} Nc6 {[%emt 0:00:01]} 10. a3 {[%emt 0:00:17]} Ba5 {[%emt 0:00:03]} 11. Bc2 {[%emt 0:00:33]} Qh4 {[%emt 0:01:00]} 12. Nxd5 {[%emt 0:01:22]} exd5 {[%emt 0:00:03]} 13. Nf4 {[%emt 0:00:00]} Be6 {[%emt 0:00:26]} 14. Qd3 {[%emt 0:00:23]} g6 {[%emt 0:00:02]} 15. Nxe6 {[%emt 0:00:22]} fxe6 {[%emt 0:00:02]} 16. Be3 {[%emt 0:00:01]} Rf7 {[%emt 0:00:05]} 17. g3 {[%emt 0:00:47]} Qf6 {[%emt 0:00:04]} 18. Rad1 {[%emt 0:00:23]} Qf3 {[%emt 0:00:08]} 19. b4 {[%emt 0:00:14]} Bb6 {[%emt 0:00:03]} 20. Rd2 {[%emt 0:00:17]} Rc8 {[%emt 0:00:10]} 21. Bd1 {[%emt 0:00:02]} Qf5 {[%emt 0:00:14]} 22. Qxf5 {[%emt 0:00:21]} exf5 {[%emt 0:00:46]} 23. Bb3 {[%emt 0:00:14]} Rd7 {[%emt 0:00:02]} 24. Rc1 {[%emt 0:00:02]} Ne7 {[%emt 0:00:24]} 25. Rxc8+ {[%emt 0:00:17]} Nxc8 {[%emt 0:00:02]} 26. a4 {[%emt 0:00:28]} a5 {[%emt 0:00:34]} 27. Rc2 {[%emt 0:00:20]} Ne7 {[%emt 0:00:04]} 28. bxa5 {[%emt 0:00:02]} Bxa5 {[%emt 0:00:01]} 29. Rc5 {[%emt 0:00:01]} b6 {[%emt 0:00:37]} 30. Rc2 {[%emt 0:00:01]} Kf7 {[%emt 0:00:02]} 31. Bf4 {[%emt 0:00:04]} Bb4 {[%emt 0:00:13]} 32. Be5 {[%emt 0:00:06]} Bd6 {[%emt 0:00:06]} 33. f4 {[%emt 0:00:05]} Ke6 {[%emt 0:00:06]} 34. Kf2 {[%emt 0:00:06]} Ra7 {[%emt 0:00:02]} 35. Ke3 {[%emt 0:00:13]} Ra5 {[%emt 0:00:06]} 36. Kd3 {[%emt 0:00:41]} Kd7 {[%emt 0:00:09]} 37. Rb2 {[%emt 0:00:20]} Nc6 {[%emt 0:00:25]} 38. Bd1 {[%emt 0:00:03]} Bc7 {[%emt 0:00:35]} 39. g4 {[%emt 0:00:07]} Ne7 {[%emt 0:00:12]} 40. h3 {[%emt 0:00:06]} Ra8 {[%emt 0:00:09]} 41. Rb5 {[%emt 0:00:09]} Ra5 {[%emt 0:00:02]} 42. Rb2 {[%emt 0:00:06]} Ra8 {[%emt 0:00:01]} 43. h4 {[%emt 0:00:01]} fxg4 {[%emt 0:00:13]} 44. Bxg4+ {[%emt 0:00:00]} Nf5 {[%emt 0:00:01]} 45. Rb4 {[%emt 0:00:51]} h5 {[%emt 0:00:09]} 46. Bh3 {[%emt 0:00:02]} Bd8 {[%emt 0:00:19]} 47. Rb5 {[%emt 0:00:18]} Ra5 {[%emt 0:00:02]} 48. Rb4 {[%emt 0:00:07]} Kc6 {[%emt 0:00:08]} 49. Bxf5 {[%emt 0:00:35]} gxf5 {[%emt 0:00:02]} 50. Rb2 {[%emt 0:00:01]} Rxa4 {[%emt 0:00:03]} 51. Rc2+ {[%emt 0:00:00]} Kd7 {[%emt 0:00:04]} 52. Rc1 {[%emt 0:00:23]} Ra3+ {[%emt 0:00:04]} 53. Ke2 {[%emt 0:00:01]} Rg3 {[%emt 0:00:35]} 54. Ra1 {[%emt 0:00:03]} Bxh4 {[%emt 0:00:07]} 55. Ra7+ {[%emt 0:00:01]} Kc6 {[%emt 0:00:14]} 56. Rf7 {[%emt 0:00:03]} b5 {[%emt 0:01:02]} 57. Rxf5 {[%emt 0:00:01]} b4 {[%emt 0:00:01]} 58. Rxh5 {[%emt 0:00:01]} Bd8 {[%emt 0:00:12]} 59. Rh8 {[%emt 0:00:04]} Bb6 {[%emt 0:00:19]} 60. f5 {[%emt 0:00:01]} Rg5 {[%emt 0:00:02]} 61. f6 {[%emt 0:00:02]} Rf5 {[%emt 0:00:00]} 62. Rc8+ {[%emt 0:00:06]} Kd7 {[%emt 0:00:03]} 63. Rb8 {[%emt 0:00:01]} Bd8 {[%emt 0:00:10]} 64. Rxb4 {[%emt 0:00:12]} Bxf6 {[%emt 0:00:02]} 65. Bxf6 {[%emt 0:00:01]} Rxf6 {[%emt 0:00:01]} 66. Ke3 {[%emt 0:00:02]} 1/2-1/2